bitfinex/quotes_SOLUSD_20251202
["timestamp","ask_amount","ask_price","bid_price","bid_amount"]
[1764647604885,4.00014414,127.39,127.37,8.7]
[1764647605190,4.72014414,127.39,127.37,8.7]
[1764647605585,4.72014414,127.38,127.37,8.7]
[1764647607902,12.57105517,127.38,127.35,8.7]
[1764647608083,4.72014414,127.37,127.35,8.7]
[1764647609702,4.00014414,127.37,127.35,8.7]
[1764647609909,0.72,127.36,127.35,8.7]
[1764647610403,4.72014414,127.36,127.35,8.7]
[1764647611382,0.72,127.36,127.35,8.7]
[1764647611709,4.72014414,127.36,127.33,0.2]
[1764647612002,4.00014414,127.34,127.33,0.2]
[1764647612383,4.68014414,127.34,127.33,0.2]
[1764647612602,0.68,127.34,127.33,0.2]
[1764647612785,39.24816113,127.4,127.33,8.05333546]
[1764647612786,0.68,127.36,127.33,8.05333546]
[1764647612992,0.68,127.36,127.34,8.7]
[1764647613385,4.68014414,127.36,127.34,8.7]
[1764647613910,4.00014414,127.37,127.34,8.7]
[1764647614109,0.68,127.36,127.34,8.7]
[1764647614305,0.68,127.36,127.34,16.55255357]
[1764647614512,24.15848432,127.4,127.34,16.55255357]
[1764647614720,4.00014414,127.37,127.34,16.55255357]
[1764647615223,0.68,127.36,127.34,16.55255357]
[1764647615786,4.68014414,127.36,127.34,16.55255357]
[1764647617014,4.68014414,127.36,127.34,8.7]
[1764647617517,4.68014414,127.36,127.34,16.5528855]
[1764647619118,4.00014414,127.36,127.34,16.5528855]
[1764647619320,4.68014414,127.36,127.34,16.5528855]
[1764647620423,3.24159934,127.36,127.34,16.5528855]
[1764647621720,2.56159934,127.36,127.34,16.5528855]
[1764647621919,10.4128039,127.37,127.34,17.1928855]
[1764647622109,0.7,127.36,127.34,16.5528855]
[1764647622293,11.1128039,127.37,127.34,16.5528855]
[1764647622494,11.1128039,127.37,127.34,17.1928855]
[1764647623025,0.7,127.36,127.34,16.5528855]
[1764647623917,8.54806152,127.42,127.35,12.01154426]
[1764647624218,11.10966086,127.42,127.37,0.14216157]
[1764647624415,0.7,127.41,127.38,8.7]
[1764647624817,2.56159934,127.42,127.39,0.64]
[1764647625123,3.26159934,127.42,127.39,0.64]
[1764647626697,3.26159934,127.42,127.39,8.48962705]
[1764647627096,3.26159934,127.42,127.39,7.84962705]
[1764647630020,2.56159934,127.43,127.4,9.44994492]
[1764647630227,3.26159934,127.43,127.41,8.7]
[1764647630425,0.7,127.42,127.41,8.7]
[1764647631400,0.7,127.42,127.41,16.54867749]
[1764647632099,2.56159934,127.43,127.41,16.54867749]
[1764647632302,3.26159934,127.45,127.41,17.18867749]
[1764647632624,2.56159934,127.44,127.41,16.54867749]
[1764647632831,3.26159934,127.44,127.41,16.54867749]
[1764647633032,0.7,127.43,127.41,16.54867749]
[1764647636512,3.26159934,127.43,127.41,16.54867749]
[1764647636806,3.26159934,127.43,127.41,8.7]
[1764647637335,3.26159934,127.43,127.41,16.54844599]
[1764647637830,2.56159934,127.42,127.41,16.54844599]
[1764647638313,3.26159934,127.43,127.41,16.54844599]
[1764647640236,3.26159934,127.42,127.41,7.84844599]
[1764647640416,3.26159934,127.42,127.41,8.68]
[1764647640610,0.7,127.45,127.42,8.80994492]
[1764647640814,48.01742556,127.5,127.42,8.80994492]
[1764647640815,0.7,127.48,127.44,11.37154426]
[1764647641026,0.7,127.48,127.45,8.68]
[1764647641343,0.7,127.48,127.45,9.32]
[1764647642208,3.26159934,127.48,127.46,7.84559861]
[1764647642442,3.26159934,127.48,127.47,8.68]
[1764647643530,0.7,127.48,127.47,8.68]
[1764647643723,11.10607142,127.48,127.45,16.52595653]
[1764647644048,0.7,127.48,127.45,16.52595653]
[1764647644210,0.7,127.47,127.45,16.52595653]
[1764647644540,3.26159934,127.47,127.45,16.52595653]
[1764647644715,3.26159934,127.46,127.45,16.52595653]
[1764647645352,0.7,127.46,127.45,16.52595653]
[1764647646831,0.7,127.46,127.45,8.68]
[1764647647044,3.26159934,127.46,127.45,8.68]
[1764647647923,3.26159934,127.46,127.44,8.68]
[1764647648142,3.26159934,127.45,127.44,8.68]
[1764647648614,3.26159934,127.45,127.42,7.84752298]
[1764647648826,2.56159934,127.43,127.42,7.84752298]
[1764647649222,3.26159934,127.43,127.42,7.84752298]
[1764647650736,3.26159934,127.43,127.41,16.52841791]
[1764647650931,3.26159934,127.42,127.38,7.85052598]
[1764647651144,2.56159934,127.4,127.38,16.53052598]
[1764647651506,7.8477134,127.43,127.38,16.53052598]
[1764647651507,3.21159934,127.39,127.38,16.53052598]
[1764647651921,2.56159934,127.39,127.38,16.53052598]
[1764647652122,3.21159934,127.4,127.38,16.53052598]
[1764647656192,3.21159934,127.39,127.38,8.68]
[1764647657160,2.56159934,127.39,127.38,8.68]
[1764647657455,3.21159934,127.39,127.36,24.16050934]
[1764647657628,3.21159934,127.38,127.37,8.68]
[1764647657956,2.56159934,127.38,127.37,8.68]
[1764647660534,7.84894342,127.41,127.37,16.53097331]
[1764647660738,3.21159934,127.4,127.37,16.53097331]
[1764647661139,0.65,127.39,127.37,16.53097331]
[1764647662750,3.21159934,127.39,127.37,8.68]
[1764647663740,3.21159934,127.38,127.37,8.68]
[1764647664554,3.21159934,127.38,127.35,8.68]
[1764647664857,2.56159934,127.36,127.35,8.68]
[1764647665356,3.21159934,127.36,127.35,8.68]
[1764647666359,2.56159934,127.37,127.35,8.68]
[1764647666559,3.21159934,127.37,127.35,8.68]
[1764647669357,8.68,127.43,127.35,8.68]
[1764647669570,150.0,127.46,127.4,2.56159934]
[1764647669571,0.65,127.45,127.4,2.56159934]
[1764647669757,27.45959515,127.46,127.42,2.56159934]
[1764647669758,8.49559861,127.46,127.42,2.56159934]
[1764647669941,11.05610429,127.48,127.43,11.24159934]
[1764647670143,0.65,127.48,127.44,2.56159934]
[1764647670351,7.94317431,127.5,127.45,8.68]
[1764647670352,2.66159934,127.5,127.45,8.68]
[1764647670540,0.65,127.49,127.46,8.80994492]
[1764647670863,0.65,127.49,127.46,9.44994492]
[1764647671071,0.1,127.5,127.46,12.01154426]
[1764647671239,0.76,127.5,127.46,12.01154426]
[1764647671954,0.76,127.5,127.47,7.84498313]
[1764647672239,0.76,127.5,127.48,8.68]
[1764647673760,0.76,127.5,127.48,16.524349]
[1764647675351,3.32159934,127.5,127.48,16.524349]
[1764647675865,3.22159934,127.49,127.48,8.68]
[1764647676664,3.22159934,127.49,127.46,7.84520156]
[1764647676961,0.76,127.5,127.47,0.64]
[1764647677968,0.76,127.5,127.48,7.84436774]
[1764647678368,3.32159934,127.5,127.48,7.84436774]
[1764647679173,3.32159934,127.5,127.49,8.68]
[1764647680663,0.1,127.5,127.49,16.52375245]
[1764647682571,0.81,127.5,127.49,16.52375245]
[1764647682869,0.81,127.5,127.49,8.68]
[1764647682870,4.80289705,127.5,127.49,8.68]
[1764647684274,4.80289705,127.5,127.47,16.52450294]
[1764647684563,4.70289705,127.49,127.47,16.52450294]
[1764647685379,4.70289705,127.48,127.47,8.68]
[1764647685664,4.70289705,127.48,127.45,16.52604626]
[1764647685868,7.8439131,127.49,127.45,7.84604626]
[1764647685869,4.70289705,127.47,127.45,7.84604626]
[1764647686041,3.99289705,127.47,127.45,7.84604626]
[1764647686248,3.99289705,127.47,127.45,16.52604626]
[1764647686569,4.70289705,127.47,127.45,16.52604626]
[1764647687063,4.70289705,127.47,127.44,27.46330378]
[1764647687271,4.70289705,127.47,127.45,8.68]
[1764647687768,4.70289705,127.47,127.44,27.46330378]
[1764647687988,4.70289705,127.47,127.45,8.68]
[1764647688284,4.70289705,127.46,127.43,7.84723072]
[1764647688442,3.99289705,127.44,127.42,7.84783048]
[1764647688641,3.99289705,127.43,127.42,8.68]
[1764647689158,4.70289705,127.43,127.42,8.68]
[1764647693251,12.55037455,127.43,127.4,8.68]
[1764647693450,4.70289705,127.42,127.4,8.68]
[1764647694069,0.71,127.42,127.4,8.68]
[1764647694370,4.70289705,127.42,127.4,8.68]
[1764647694857,4.70289705,127.42,127.4,16.52887269]
[1764647696670,4.70289705,127.41,127.4,8.68]
[1764647699359,12.55157454,127.41,127.4,8.68]
[1764647699563,12.55157454,127.41,127.37,24.15981952]
[1764647699765,4.70289705,127.4,127.38,8.68]
[1764647700162,0.71,127.39,127.38,8.68]
[1764647700562,4.70289705,127.39,127.38,8.68]
[1764647700856,12.55291217,127.39,127.35,7.85203407]
[1764647701167,4.70289705,127.41,127.37,8.68]
[1764647701558,4.70289705,127.41,127.37,9.32]
[1764647701758,4.70289705,127.41,127.38,0.64]
[1764647701974,3.99289705,127.43,127.39,8.68]
[1764647702162,8.55688692,127.44,127.39,12.67289705]
[1764647702357,12.54978397,127.44,127.4,0.64]
[1764647702557,4.70289705,127.43,127.39,9.32]
[1764647703278,0.71,127.43,127.4,7.84929356]
[1764647703475,0.71,127.43,127.4,8.48929356]
[1764647704562,4.70289705,127.45,127.41,0.64]
[1764647704884,4.70289705,127.45,127.42,8.68]
[1764647705084,0.71,127.44,127.42,8.68]
[1764647705486,4.70289705,127.44,127.42,8.68]
[1764647706372,0.71,127.44,127.42,8.68]
[1764647706574,0.71,127.46,127.42,17.16753812]
[1764647706775,4.70289705,127.45,127.42,17.16753812]
[1764647706968,4.70289705,127.45,127.42,16.52753812]
[1764647707769,3.99289705,127.45,127.42,16.52753812]
[1764647708075,4.70289705,127.44,127.42,16.52753812]
[1764647710371,4.70289705,127.45,127.42,16.52753812]
[1764647714494,0.69,127.44,127.42,16.52753812]
[1764647716080,3.99289705,127.45,127.42,16.52753812]
[1764647716284,0.69,127.45,127.42,17.16753812]
[1764647716681,3.99289705,127.46,127.42,17.16753812]
[1764647716891,16.308864,127.48,127.43,0.64]
[1764647717172,4.68289705,127.47,127.43,0.64]
[1764647717574,3.99289705,127.47,127.44,7.84682988]
[1764647717781,0.69,127.46,127.44,7.84682988]
[1764647718009,3.99289705,127.48,127.45,8.68]
[1764647718306,0.69,127.47,127.45,8.68]
[1764647722909,7.84437331,127.48,127.45,16.52620518]
[1764647723082,0.69,127.47,127.45,16.52620518]
[1764647724504,0.69,127.47,127.45,20.51910223]
[1764647726186,0.69,127.47,127.45,16.52620518]
[1764647729709,8.53437331,127.48,127.45,21.15910223]
[1764647730008,8.53437331,127.48,127.45,20.51910223]
[1764647730202,0.69,127.47,127.45,20.51910223]
[1764647730591,11.93631342,127.5,127.45,20.51910223]
[1764647730908,11.93631342,127.5,127.47,3.99289705]
[1764647730909,0.79,127.5,127.47,3.99289705]
[1764647731238,0.79,127.5,127.49,3.99289705]
[1764647731239,0.1,127.5,127.49,3.99289705]
[1764647731410,0.1,127.5,127.49,12.94500354]
[1764647731613,0.1,127.51,127.5,8.95210649]
[1764647731803,0.1,127.51,127.5,42.56676459]
[1764647732293,0.1,127.51,127.5,50.40990184]
[1764647734800,0.1,127.51,127.5,46.41700479]
[1764647735018,0.1,127.51,127.5,45.63484322]
[1764647737017,0.1,127.51,127.5,46.27484322]
[1764647737402,0.79,127.51,127.47,20.25159517]
[1764647737600,0.1,127.51,127.49,3.99289705]
[1764647737814,0.79,127.51,127.5,8.68]
[1764647740111,0.79,127.51,127.5,16.52313725]
[1764647743014,0.1,127.51,127.5,25.47524374]
[1764647743215,0.1,127.51,127.5,28.67013958]
[1764647743795,0.1,127.51,127.5,44.97900358]
[1764647747897,0.1,127.51,127.5,55.19858694]
[1764647748117,0.1,127.54,127.53,16.45102557]
[1764647748417,0.1,127.54,127.53,36.49586633]
[1764647748595,0.1,127.54,127.53,36.99370476]
[1764647749123,0.1,127.54,127.53,44.834997]
[1764647751312,0.1,127.54,127.53,44.97715857]
[1764647753023,0.1,127.54,127.53,44.33715857]
[1764647753395,0.1,127.54,127.53,44.97715857]
[1764647753594,0.1,127.54,127.53,45.87715857]
[1764647753800,0.1,127.54,127.53,45.23715857]
[1764647754698,0.1,127.54,127.53,43.32226273]
[1764647754911,0.1,127.54,127.53,45.87715857]
[1764647756133,0.1,127.54,127.53,45.23715857]
[1764647757147,0.1,127.54,127.53,45.87715857]
[1764647758236,0.1,127.54,127.53,45.23715857]
[1764647760940,0.1,127.54,127.53,36.414997]
[1764647761148,0.79,127.54,127.53,45.094997]
[1764647761511,0.1,127.54,127.53,45.87715857]
[1764647761743,1e-08,127.54,127.53,45.87715857]
[1764647762733,0.1,127.56,127.54,8.95210649]
[1764647763048,0.1,127.56,127.55,38.24664841]
[1764647763342,0.04,127.56,127.55,55.19551241]
[1764647763724,0.04,127.56,127.55,44.97592905]
[1764647767053,0.1,127.58,127.57,8.80994492]
[1764647767251,1e-08,127.58,127.57,20.18700233]
[1764647767542,1e-08,127.58,127.57,20.82700233]
[1764647767751,0.1,127.59,127.58,25.26097049]
[1764647767925,1e-08,127.6,127.58,28.45586633]
[1764647768126,1e-08,127.6,127.59,20.82700233]
[1764647768640,1e-08,127.6,127.59,23.96684298]
[1764647768850,0.1,127.64,127.63,8.95210649]
[1764647768851,1e-08,127.64,127.63,8.95210649]
[1764647769141,0.1,127.67,127.66,25.26097049]
[1764647769360,1e-08,127.67,127.66,36.49586633]
[1764647769515,1e-08,127.67,127.66,37.13586633]
[1764647769846,1e-08,127.67,127.66,25.26097049]
[1764647770051,1e-08,127.67,127.66,33.94097049]
[1764647770235,0.69000001,127.67,127.66,33.94097049]
[1764647770430,0.69000001,127.67,127.66,36.49586633]
[1764647771127,0.69000001,127.67,127.66,44.18701198]
[1764647772747,0.69000001,127.67,127.66,8.68]
[1764647773362,11.07760733,127.67,127.63,8.66]
[1764647773661,3.24489585,127.67,127.63,8.66]
[1764647773961,3.22489584,127.66,127.63,8.66]
[1764647774438,0.67,127.65,127.63,8.66]
[1764647776343,3.22489584,127.65,127.6,35.51020532]
[1764647776536,2.55489584,127.64,127.6,27.86134132]
[1764647776741,3.22489584,127.64,127.6,16.49650056]
[1764647776941,0.67,127.63,127.6,16.49650056]
[1764647777554,0.67,127.63,127.6,19.0513964]
[1764647777741,0.67,127.63,127.61,2.55489584]
[1764647778636,0.67,127.63,127.6,19.0513964]
[1764647781146,0.67,127.63,127.6,16.49650056]
[1764647781457,3.22489584,127.63,127.6,16.49650056]
[1764647781640,2.55489584,127.62,127.6,7.83650056]
[1764647781838,3.22489584,127.62,127.6,7.83650056]
[1764647782054,0.67,127.61,127.6,7.83650056]
[1764647783361,0.67,127.61,127.59,27.43081918]
[1764647784140,0.67,127.61,127.59,7.83760482]
[1764647784360,0.67,127.61,127.57,7.83837795]
[1764647784361,3.22489584,127.61,127.57,7.83837795]
[1764647784859,0.67,127.6,127.57,7.83837795]
[1764647785236,0.67,127.65,127.6,7.83699059]
[1764647785444,0.67,127.66,127.61,11.21489584]
[1764647785649,0.67,127.66,127.62,11.36484076]
[1764647786362,0.67,127.66,127.62,2.55489584]
[1764647786564,0.67,127.66,127.62,11.36484076]
[1764647786745,3.22489584,127.66,127.61,8.66]
[1764647786948,2.55489584,127.65,127.61,8.66]
[1764647787340,8.50455935,127.64,127.61,8.66]
[1764647787558,11.05945519,127.64,127.61,8.66]
[1764647787857,0.67,127.63,127.6,7.83699059]
[1764647788436,22.13663,127.67,127.61,2.55489584]
[1764647788774,0.67,127.66,127.64,11.36484076]
[1764647789067,0.67,127.66,127.63,11.36484076]
[1764647789445,0.67,127.66,127.64,7.83453462]
[1764647792252,0.67,127.66,127.64,10.38943046]
[1764647792666,0.67,127.66,127.65,2.55489584]
[1764647793449,0.67,127.66,127.64,7.83453462]
[1764647793649,0.67,127.66,127.65,10.38881671]
[1764647794084,0.67,127.66,127.63,2.55489584]
[1764647794257,11.05826555,127.66,127.62,8.68]
[1764647794454,11.05826555,127.66,127.61,19.20109904]
[1764647794770,3.27489584,127.65,127.61,16.6462032]
[1764647795168,0.72,127.64,127.61,16.6462032]
[1764647795372,0.72,127.64,127.61,19.20109904]
[1764647796381,8.55453557,127.64,127.61,7.83625828]
[1764647796769,0.72,127.63,127.61,7.83625828]
[1764647797282,0.72,127.63,127.6,19.0716725]
[1764647798088,0.72,127.63,127.6,8.68]
[1764647798458,0.72,127.63,127.6,19.0718383]
[1764647798658,0.72,127.63,127.61,2.55489584]
[1764647798972,0.72,127.65,127.62,2.55489584]
[1764647800776,0.72,127.65,127.61,11.36484076]
[1764647800971,3.27489584,127.65,127.61,11.36484076]
[1764647801367,0.72,127.64,127.61,11.36484076]
[1764647801876,0.72,127.64,127.62,7.83576241]
[1764647802313,1e-08,127.67,127.62,7.83576241]
[1764647802314,1e-08,127.67,127.66,8.80994492]
[1764647802599,1e-08,127.67,127.66,37.94085474]
[1764647802809,1e-08,127.67,127.66,38.58085474]
[1764647803485,1e-08,127.67,127.66,46.41416196]
[1764647806501,1e-08,127.67,127.66,50.39404621]
[1764647807595,1e-08,127.67,127.66,46.41416196]
[1764647807782,1e-08,127.67,127.66,50.39404621]
[1764647808099,0.69,127.72,127.67,8.95210649]
[1764647808302,0.69,127.72,127.71,3.97988425]
[1764647809897,0.69,127.72,127.71,11.81012463]
[1764647810274,16.998864,127.77,127.71,11.81012463]
[1764647810474,0.1,127.78,127.76,3.97988425]
[1764647810781,0.1,127.78,127.72,8.7]
[1764647810983,0.1,127.78,127.73,3.97988425]
[1764647811181,0.69,127.77,127.74,3.97988425]
[1764647812377,0.69,127.77,127.74,11.80824283]
[1764647812775,8.51660668,127.77,127.74,3.97988425]
[1764647813405,0.69,127.76,127.73,7.82886832]
[1764647813607,0.69,127.76,127.74,3.97988425]
[1764647813907,0.69,127.76,127.73,11.80875257]
[1764647815505,0.1,127.78,127.75,3.97988425]
[1764647815684,0.69,127.76,127.75,3.97988425]
[1764647815881,0.69,127.76,127.73,7.82886832]
[1764647816194,0.69,127.76,127.73,11.80875257]
[1764647816380,0.79,127.78,127.75,3.97988425]
[1764647816579,0.69,127.77,127.75,3.97988425]
[1764647817191,0.69,127.77,127.76,3.97988425]
[1764647817803,0.69,127.77,127.74,16.63813875]
[1764647817977,0.69,127.77,127.75,3.97988425]
[1764647818899,0.69,127.77,127.73,7.82886395]
[1764647819094,0.69,127.77,127.73,11.8087482]
[1764647819289,0.69,127.77,127.75,3.97988425]
[1764647819595,0.69,127.77,127.74,20.61767391]
[1764647820000,0.69,127.77,127.73,11.80871146]
[1764647820182,0.69,127.77,127.72,7.829372]
[1764647820183,8.516584,127.77,127.72,7.829372]
[1764647820383,12.49646825,127.77,127.72,11.80925625]
[1764647820694,0.69,127.76,127.72,11.80925625]
[1764647821359,4.07988425,127.78,127.72,11.80925625]
[1764647821360,0.1,127.78,127.77,0.14216157]
[1764647821490,0.1,127.78,127.77,20.66860917]
[1764647821683,0.1,127.78,127.77,21.30860917]
[1764647821878,0.1,127.78,127.77,30.11855409]
[1764647822085,0.1,127.8,127.79,25.26097049]
[1764647822293,0.1,127.8,127.79,33.22073899]
[1764647822508,0.1,127.8,127.79,33.86073899]
[1764647822696,0.69,127.84,127.83,3.97988425]
[1764647823006,0.69,127.84,127.83,12.78982917]
[1764647823214,0.1,127.91,127.83,8.80994492]
[1764647823392,28.05512899,127.9,127.84,8.80994492]
[1764647823715,8.50939325,127.89,127.85,3.97988425]
[1764647824084,0.69,127.88,127.86,3.97988425]
[1764647824613,0.69,127.88,127.86,11.05603741]
[1764647825819,0.69,127.88,127.85,18.87756447]
[1764647826321,11.74603741,127.88,127.84,18.87815256]
[1764647826618,0.69,127.88,127.85,11.05603741]
[1764647826816,0.69,127.87,127.84,18.87815256]
[1764647827018,0.69,127.87,127.86,11.05603741]
[1764647827603,0.69,127.87,127.86,19.86598233]
[1764647827803,0.69,127.89,127.86,19.86598233]
[1764647828214,0.69,127.89,127.86,11.05603741]
[1764647828417,0.69,127.89,127.85,27.68764834]
[1764647829123,11.74603741,127.89,127.85,27.68764834]
[1764647829501,19.56545434,127.89,127.85,7.82166601]
[1764647829701,0.69,127.88,127.85,7.82166601]
[1764647830215,0.1,127.91,127.86,11.05603741]
[1764647830418,0.69,127.89,127.87,11.05603741]
[1764647830610,0.69,127.89,127.86,11.05603741]
[1764647830809,0.69,127.89,127.85,9.59210649]
[1764647831015,0.69,127.89,127.85,20.6481439]
[1764647831335,0.69,127.89,127.86,11.05603741]
[1764647831624,0.69,127.89,127.86,18.87703478]
[1764647831824,0.69,127.89,127.86,7.82099737]
[1764647832830,11.74603741,127.89,127.84,19.75603741]
[1764647833002,11.74603741,127.89,127.85,11.05603741]
[1764647833204,18.87473892,127.9,127.85,11.05603741]
[1764647833422,11.05603741,127.86,127.82,19.75603741]
[1764647833720,11.05603741,127.85,127.8,25.33449594]
[1764647833923,11.05603741,127.84,127.8,36.39053335]
[1764647834408,0.72,127.83,127.8,36.39053335]
[1764647834804,11.77603741,127.83,127.79,7.82513155]
[1764647835122,11.77603741,127.83,127.76,27.58317908]
[1764647835123,0.72,127.83,127.76,27.58317908]
[1764647835299,11.05603741,127.81,127.77,8.80994492]
[1764647835728,0.72,127.8,127.77,8.80994492]
[1764647836026,0.72,127.8,127.77,19.86598233]
[1764647836196,0.72,127.8,127.77,8.80994492]
[1764647836527,0.72,127.8,127.77,19.86598233]
[1764647836702,11.77603741,127.8,127.76,16.52714167]
[1764647837102,0.72,127.79,127.76,7.82714167]
[1764647837302,11.77603741,127.79,127.76,7.82714167]
[1764647837806,0.72,127.79,127.76,7.82714167]
[1764647838123,0.72,127.81,127.77,11.69603741]
[1764647838325,11.05603741,127.82,127.77,11.05603741]
[1764647838625,0.72,127.8,127.76,38.45111896]
[1764647839048,0.72,127.8,127.77,11.05603741]
[1764647839807,0.72,127.8,127.77,7.82656335]
[1764647840362,0.72,127.8,127.78,8.80994492]
[1764647840655,24.13161233,127.84,127.78,20.50598233]
[1764647840656,0.72,127.82,127.78,20.50598233]
[1764647840810,0.30650597,127.82,127.78,20.50598233]
[1764647841236,32.83161233,127.84,127.78,20.50598233]
[1764647841237,7.82187822,127.85,127.81,11.05603741]
[1764647841547,7.82187822,127.85,127.79,8.7]
[1764647841548,11.05603741,127.83,127.79,8.7]
[1764647841724,11.05603741,127.83,127.79,16.52480641]
[1764647841910,18.87872257,127.84,127.79,27.58084382]
[1764647842109,7.82180169,127.85,127.81,11.05603741]
[1764647842336,19.75603741,127.87,127.82,11.05603741]
[1764647842525,11.05603741,127.86,127.81,11.05603741]
[1764647842933,11.77603741,127.86,127.81,11.05603741]
[1764647843135,11.77603741,127.85,127.8,20.58598233]
[1764647843524,0.72,127.84,127.8,20.58598233]
[1764647843853,11.77603741,127.84,127.81,7.82411391]
[1764647844335,0.72,127.83,127.81,7.82411391]
[1764647844539,11.77603741,127.83,127.81,7.82411391]
[1764647845133,0.72,127.83,127.81,7.82411391]
[1764647845329,11.05603741,127.83,127.81,7.82411391]
[1764647845640,11.77603741,127.83,127.81,7.82411391]
[1764647845843,0.72,127.82,127.8,7.82472613]
[1764647846354,11.77603741,127.82,127.8,7.82472613]
[1764647846524,11.77603741,127.82,127.79,7.82521662]
[1764647846848,11.77603741,127.81,127.79,7.82521662]
[1764647847222,0.72,127.8,127.79,7.82521662]
[1764647847621,11.05603741,127.82,127.77,39.3221857]
[1764647847825,0.72,127.81,127.78,7.82595085]
[1764647850244,0.72,127.81,127.77,40.0421857]
[1764647850245,11.05603741,127.79,127.77,7.82633356]
[1764647850446,0.72,127.78,127.77,7.82633356]
[1764647850641,0.72,127.78,127.76,7.82692884]
[1764647851546,11.05603741,127.8,127.76,7.82692884]
[1764647851850,11.77603741,127.8,127.76,7.82692884]
[1764647852051,0.72,127.79,127.76,7.82692884]
[1764647852347,0.72,127.79,127.76,18.88296625]
[1764647852551,0.72,127.81,127.77,11.05603741]
[1764647852737,0.72,127.8,127.77,11.05603741]
[1764647853342,0.72,127.8,127.76,39.17090613]
[1764647853543,11.05603741,127.77,127.73,7.82901432]
[1764647853942,8.54479927,127.8,127.73,8.54901432]
[1764647853943,0.72,127.76,127.73,8.54901432]
[1764647854141,0.72,127.76,127.73,7.82901432]
[1764647854526,0.72,127.76,127.73,8.54901432]
[1764647855236,0.72,127.76,127.72,17.50994492]
[1764647855549,11.05603741,127.75,127.71,7.83024038]
[1764647855935,0.72,127.74,127.71,7.83024038]
[1764647856347,0.72,127.74,127.71,19.60627779]
[1764647856540,0.72,127.74,127.71,7.83024038]
[1764647856748,0.72,127.74,127.71,8.55024038]
[1764647857048,11.77603741,127.74,127.71,7.83024038]
[1764647857255,11.77603741,127.74,127.7,16.53059719]
[1764647857447,0.69,127.73,127.7,16.53059719]
[1764647857755,0.69,127.74,127.7,28.2666346]
[1764647858351,11.74603741,127.74,127.7,17.21059719]
[1764647858722,11.74603741,127.74,127.7,16.53059719]
[1764647858923,0.69,127.73,127.7,16.53059719]
[1764647859142,0.69,127.73,127.7,27.5866346]
[1764647859652,0.69,127.73,127.7,28.2666346]
[1764647860155,0.69,127.73,127.7,16.53059719]
[1764647860354,11.74603741,127.73,127.7,16.53059719]
[1764647860540,0.69,127.76,127.71,11.73603741]
[1764647860742,11.74603741,127.76,127.71,11.73603741]
[1764647861458,11.74603741,127.75,127.71,0.68]
[1764647861836,0.68,127.74,127.72,7.8296273]
[1764647864358,0.68,127.74,127.71,7.83024038]
[1764647864847,0.68,127.76,127.71,35.18882407]
[1764647865049,7.75298272,127.75,127.71,35.18882407]
[1764647865834,0.68,127.74,127.71,35.18882407]
[1764647866040,7.75298272,127.74,127.71,7.83024038]
[1764647866465,7.75298272,127.74,127.71,8.54024038]
[1764647866874,7.8276421,127.76,127.64,40.98120727]
[1764647866875,7.07298272,127.72,127.64,40.98120727]
[1764647867040,7.07298272,127.68,127.65,7.83392087]
[1764647867235,0.68,127.72,127.65,7.83392087]
[1764647867550,7.07298272,127.67,127.65,7.83392087]
[1764647867944,7.75298272,127.67,127.65,7.83392087]
[1764647868369,0.68,127.67,127.65,7.83392087]
[1764647868561,0.68,127.69,127.65,15.61690359]
[1764647869667,7.75298272,127.69,127.65,8.54392087]
[1764647869852,7.75298272,127.69,127.65,7.83392087]
[1764647870051,0.68,127.68,127.65,7.83392087]
[1764647870568,7.07298272,127.67,127.64,0.2]
[1764647871071,24.13887369,127.72,127.64,15.10733473]
[1764647871246,7.75298272,127.7,127.65,16.59292764]
[1764647871766,0.68,127.69,127.65,9.51994492]
[1764647872151,0.68,127.69,127.66,7.78298272]
[1764647872349,0.68,127.69,127.66,15.61567771]
[1764647873253,0.68,127.69,127.66,7.83330722]
[1764647873466,0.68,127.69,127.66,8.54330722]
[1764647873651,7.75298272,127.69,127.65,16.64358995]